bitfinex/quotes_SOLUSD_20250609
["timestamp","ask_amount","ask_price","bid_price","bid_amount"]
[1749459067425,12.52960015,151.45,151.42,32.6040927]
[1749459067635,12.52960015,151.47,151.43,12.52960015]
[1749459069038,12.52960015,151.48,151.44,12.52960015]
[1749459069270,1.605,151.51,151.47,12.52960015]
[1749459069413,18.76900015,151.53,151.49,12.52960015]
[1749459069612,18.76900015,151.53,151.5,12.52960015]
[1749459069613,6.2394,151.53,151.5,12.52960015]
[1749459069833,146.1,151.54,151.51,12.52960015]
[1749459070013,12.52960015,151.54,151.5,12.52960015]
[1749459071717,12.52960015,151.54,151.51,6.6002244]
[1749459075319,12.52960015,151.56,151.52,12.52960015]
[1749459077366,12.52960015,151.55,151.52,12.52960015]
[1749459077666,12.52960015,151.56,151.52,19.12934697]
[1749459078441,12.52960015,151.56,151.51,12.52960015]
[1749459079480,12.52960015,151.56,151.52,6.5997888]
[1749459082545,12.52960015,151.55,151.52,6.5997888]
[1749459083668,12.52960015,151.56,151.52,6.5997888]
[1749459085569,13.63948463,151.57,151.52,6.5997888]
[1749459085570,12.52960015,151.55,151.52,6.5997888]
[1749459085958,12.52960015,151.55,151.51,19.12970428]
[1749459086351,12.52960015,151.55,151.51,12.52960015]
[1749459086679,12.52960015,151.54,151.5,29.53014552]
[1749459089491,12.52960015,151.55,151.5,29.53014552]
[1749459089865,12.52960015,151.54,151.5,29.53014552]
[1749459090961,6.59811091,151.56,151.5,29.53014552]
[1749459091267,12.52960015,151.56,151.51,19.12977316]
[1749459091584,12.52960015,151.54,151.5,22.92960015]
[1749459092080,12.52960015,151.52,151.5,10.4]
[1749459092456,12.52960015,151.52,151.48,12.52960015]
[1749459092657,12.52960015,151.52,151.48,19.13110672]
[1749459093168,12.52960015,151.52,151.48,6.60150657]
[1749459093569,12.52960015,151.51,151.48,6.60150657]
[1749459096091,12.52960015,151.5,151.47,26.0]
[1749459096271,1.5367,151.54,151.46,10.36]
[1749459096272,12.52960015,151.49,151.46,10.36]
[1749459096475,1.5367,151.54,151.46,10.36]
[1749459096476,12.52960015,151.5,151.46,10.36]
[1749459097387,12.52960015,151.5,151.47,6.60196738]
[1749459102675,12.52960015,151.51,151.47,19.13156753]
[1749459106576,1.5367,151.54,151.48,12.52960015]
[1749459106781,12.52960015,151.53,151.49,12.52960015]
[1749459107010,12.52960015,151.53,151.5,6.60066006]
[1749459108102,14.06630015,151.54,151.5,19.13026021]
[1749459110689,158.62960015,151.56,151.52,12.52960015]
[1749459111087,158.62960015,151.56,151.51,12.52960015]
[1749459112302,158.62960015,151.56,151.52,6.5997888]
[1749459112509,12.52960015,151.55,151.52,6.5997888]
[1749459112921,146.1,151.56,151.52,6.5997888]
[1749459113148,146.1,151.56,151.52,19.12938895]
[1749459113347,158.62960015,151.56,151.52,6.5997888]
[1749459115634,158.62960015,151.56,151.52,19.12938895]
[1749459116891,7.0417995,151.57,151.55,12.52960015]
[1749459116892,0.8425995,151.57,151.55,12.52960015]
[1749459118229,0.8425995,151.57,151.55,19.12782602]
[1749459118448,0.8425995,151.57,151.55,6.59822587]
[1749459122664,12.52960015,151.56,151.5,38.52960015]
[1749459122963,12.52960015,151.54,151.5,29.47026021]
[1749459125562,12.52960015,151.54,151.5,16.94066006]
[1749459126754,12.52960015,151.54,151.5,29.47026021]
[1749459126959,12.52960015,151.55,151.5,29.47026021]
[1749459129273,12.52960015,151.54,151.5,29.47026021]
[1749459130048,12.52960015,151.53,151.5,10.34]
[1749459132075,12.52960015,151.53,151.49,19.1305303]
[1749459132775,12.52960015,151.54,151.49,19.1305303]
[1749459132984,12.52960015,151.54,151.49,6.60093015]
[1749459133476,12.52960015,151.54,151.49,19.1305303]
[1749459135078,12.52960015,151.54,151.5,19.1299989]
[1749459139277,6.2784,151.56,151.52,12.52960015]
[1749459139588,2.5071995,151.57,151.52,12.52960015]
[1749459139893,15.03679965,151.57,151.53,12.52960015]
[1749459140994,2.5071995,151.57,151.53,12.52960015]
[1749459141378,0.8425995,151.57,151.54,19.12851792]
[1749459142067,0.8425995,151.57,151.55,12.52960015]
[1749459143595,0.8425995,151.57,151.55,19.12784272]
[1749459145083,0.8425995,151.57,151.53,6.59896525]
[1749459145271,0.8425995,151.57,151.54,12.52960015]
[1749459147706,0.8425995,151.57,151.54,19.1282451]
[1749459156712,0.8425995,151.57,151.55,12.52960015]
[1749459158217,0.8425995,151.57,151.56,6.59804697]
[1749459158910,0.8425995,151.57,151.56,19.12764712]
[1749459161719,0.8425995,151.57,151.56,6.59804697]
[1749459161913,0.8425995,151.57,151.56,19.12764712]
[1749459165222,0.8425995,151.57,151.56,8.02178504]
[1749459165935,0.8425995,151.57,151.55,6.59848234]
[1749459166108,0.8425995,151.57,151.56,8.02178504]
[1749459167623,0.8425995,151.57,151.56,14.61983201]
[1749459172224,0.8425995,151.57,151.54,34.02178504]
[1749459172409,0.8425995,151.57,151.54,40.62052263]
[1749459180237,0.8425995,151.57,151.55,8.02178504]
[1749459180735,0.8425995,151.57,151.54,40.62052263]
[1749459182739,0.8425995,151.57,151.55,8.02178504]
[1749459183412,0.8425995,151.57,151.55,14.6200617]
[1749459186539,0.8425995,151.57,151.56,8.02178504]
[1749459186742,0.8425995,151.57,151.55,6.59827666]
[1749459186929,0.8425995,151.57,151.56,8.02178504]
[1749459189435,0.8425995,151.57,151.56,14.61983201]
[1749459189822,0.8425995,151.57,151.56,14.76199358]
[1749459190724,0.8425995,151.57,151.56,33.55380401]
[1749459192225,0.8425995,151.57,151.56,14.76199358]
[1749459195030,0.8425995,151.57,151.56,65.10199358]
[1749459203427,0.8425995,151.57,151.56,57.08020854]
[1749459203627,0.8425995,151.57,151.56,14.61983201]
[1749459228745,0.8425995,151.57,151.56,14.76199358]
[1749459231562,0.8425995,151.57,151.56,33.55380401]
[1749459231760,0.8425995,151.57,151.56,14.76199358]
[1749459243485,0.8425995,151.57,151.56,33.55380401]
[1749459247200,2.73291378,151.6,151.59,44.64964886]
[1749459247367,2.73291378,151.6,151.59,56.31766359]
[1749459248280,2.73291378,151.6,151.59,88.40480375]
[1749459248986,2.73291378,151.6,151.59,56.31766359]
[1749459249378,2.73291378,151.6,151.59,62.91440479]
[1749459249582,2.73291378,151.6,151.59,95.00154495]
[1749459262209,7.8265,151.65,151.6,18.933972]
[1749459262395,7.8265,151.65,151.64,8.02178504]
[1749459264416,7.8265,151.65,151.64,14.61635111]
[1749459268915,7.9159,151.69,151.64,14.61635111]
[1749459269106,7.9159,151.69,151.65,8.02178504]
[1749459269495,7.9159,151.69,151.66,8.02178504]
[1749459270208,7.9159,151.69,151.67,8.02178504]
[1749459271616,7.9159,151.69,151.68,6.592827]
[1749459274216,15.93768504,151.69,151.64,10.26]
[1749459274417,8.02178504,151.67,151.64,10.26]
[1749459274618,8.02178504,151.68,151.64,18.28178504]
[1749459275118,8.02178504,151.68,151.64,24.87620505]
[1749459277606,15.93768504,151.69,151.65,14.61565567]
[1749459279630,7.9159,151.69,151.66,8.02178504]
[1749459279921,7.9159,151.69,151.67,8.02178504]
[1749459281420,7.9159,151.69,151.65,23.07919868]
[1749459281610,7.9159,151.69,151.67,8.02178504]
[1749459281810,15.58818504,151.73,151.68,14.61461204]
[1749459282047,15.58818504,151.73,151.69,8.02178504]
[1749459282226,7.5664,151.73,151.69,8.02178504]
[1749459282410,7.5664,151.73,151.68,6.592827]
[1749459282411,7.5664,151.73,151.7,8.02178504]
[1749459282729,7.5664,151.73,151.71,8.02178504]
[1749459282921,7.5664,151.73,151.68,6.592827]
[1749459282922,22.67994164,151.77,151.72,8.02178504]
[1749459283123,14.6581566,151.77,151.69,10.26]
[1749459283332,8.0691,151.77,151.72,8.02178504]
[1749459283515,8.02178504,151.76,151.72,8.02178504]
[1749459283715,14.65814824,151.77,151.71,8.02178504]
[1749459283923,8.02178504,151.75,151.71,8.02178504]
[1749459284433,14.65814824,151.77,151.7,6.59186657]
[1749459284607,8.02178504,151.76,151.71,8.02178504]
[1749459285006,8.02178504,151.76,151.72,8.02178504]
[1749459285222,12.51206314,151.75,151.71,12.51206314]
[1749459288246,12.51206314,151.75,151.71,19.10335834]
[1749459288549,6.58975888,151.76,151.71,19.10335834]
[1749459289026,12.51206314,151.76,151.72,12.51206314]
[1749459290529,12.51206314,151.76,151.72,19.10308105]
[1749459291615,14.65802692,151.77,151.72,19.10308105]
[1749459291816,12.51206314,151.76,151.72,19.10308105]
[1749459292245,8.0691,151.77,151.72,19.10308105]
[1749459292447,8.0691,151.77,151.73,12.51206314]
[1749459292619,12.51206314,151.76,151.72,19.10308105]
[1749459293644,20.58116314,151.77,151.73,12.51206314]
[1749459294237,20.58116314,151.77,151.73,19.10259076]
[1749459295416,12.51206314,151.79,151.75,12.51206314]
[1749459295740,12.51206314,151.78,151.74,12.51206314]
[1749459296035,12.51206314,151.79,151.75,12.51206314]
[1749459296413,12.51206314,151.78,151.74,12.51206314]
[1749459296609,179.8351,151.81,151.74,12.51206314]
[1749459296951,179.8351,151.81,151.76,0.5]
[1749459296952,12.51206314,151.79,151.76,0.5]
[1749459297234,12.51206314,151.79,151.75,12.51206314]
[1749459298746,19.1001405,151.79,151.75,12.51206314]
[1749459299140,19.1001405,151.79,151.74,6.58994794]
[1749459299441,6.58807736,151.79,151.75,12.51206314]
[1749459299622,19.1001405,151.79,151.75,12.51206314]
[1749459299826,6.58761528,151.8,151.76,12.51206314]
[1749459300140,12.51206314,151.8,151.76,12.51206314]
[1749459300524,12.51206314,151.79,151.75,12.51206314]
[1749459301140,12.51206314,151.79,151.74,16.84994794]
[1749459301141,20.24716314,151.81,151.77,12.51206314]
[1749459301827,20.24716314,151.81,151.77,19.10086014]
[1749459302244,6.58617881,151.84,151.79,12.51206314]
[1749459302444,6.585571,151.85,151.81,12.51206314]
[1749459302652,19.09763414,151.85,151.81,12.51206314]
[1749459302838,6.585571,151.85,151.81,12.51206314]
[1749459303046,19.09763414,151.85,151.81,12.51206314]
[1749459303246,2.73291378,151.86,151.82,12.51206314]
[1749459303441,2.73291378,151.86,151.81,12.51206314]
[1749459303638,2.73291378,151.86,151.83,12.51206314]
[1749459303955,2.73291378,151.86,151.84,12.51206314]
[1749459304325,2.73291378,151.86,151.85,12.51206314]
[1749459304720,2.73291378,151.86,151.82,32.58674746]
[1749459304721,2.73291378,151.86,151.84,12.51206314]
[1749459305765,15.24497692,151.86,151.82,12.51206314]
[1749459306062,21.83011964,151.86,151.82,12.51206314]
[1749459306351,12.51206314,151.83,151.78,6.58838789]
[1749459306551,12.51206314,151.82,151.77,82.84876805]
[1749459306735,12.51206314,151.81,151.77,95.3608503]
[1749459306939,12.51206314,151.8,151.77,10.26]
[1749459307142,0.28432314,151.83,151.77,10.26]
[1749459307343,12.51206314,151.8,151.77,10.26]
[1749459307654,12.51206314,151.81,151.77,22.77206314]
[1749459308528,12.51206314,151.81,151.77,10.26]
[1749459308730,12.51206314,151.8,151.77,10.26]
[1749459309864,12.51206314,151.8,151.77,16.84881784]
[1749459310237,12.51206314,151.8,151.77,10.26]
[1749459311249,0.28432314,151.83,151.77,10.26]
[1749459311250,6.58634238,151.83,151.77,29.36083508]
[1749459311435,12.51206314,151.81,151.77,29.36083508]
[1749459312645,12.51206314,151.8,151.77,10.26]
[1749459315737,12.51206314,151.79,151.77,10.26]
[1749459316057,12.51206314,151.8,151.77,10.26]
[1749459316650,19.09980951,151.8,151.77,10.26]
[1749459317552,6.58774637,151.8,151.77,10.26]
[1749459317743,19.09980951,151.8,151.77,10.26]
[1749459318666,12.51206314,151.79,151.77,10.26]
[1749459319139,12.51206314,151.79,151.76,38.77846707]
[1749459319848,12.51206314,151.77,151.76,12.77846707]
[1749459320061,12.51206314,151.77,151.73,10.26]
[1749459320240,12.51206314,151.76,151.73,10.26]
[1749459320667,12.51206314,151.75,151.73,10.26]
[1749459321542,12.51206314,151.75,151.71,19.10341761]
[1749459321968,12.51206314,151.75,151.71,12.51206314]
[1749459322273,12.51206314,151.75,151.71,19.1035585]
[1749459322442,12.51206314,151.74,151.71,19.1035585]
[1749459322645,12.51206314,151.74,151.71,12.51206314]
[1749459322949,12.51206314,151.72,151.69,10.26]
[1749459323662,12.51206314,151.72,151.69,16.85224196]
[1749459325570,12.51206314,151.73,151.69,16.85224196]
[1749459326567,12.51206314,151.72,151.69,10.26]
[1749459327567,12.51206314,151.72,151.69,22.77206314]
[1749459327769,12.51206314,151.72,151.69,29.36434625]
[1749459328372,0.28432314,151.75,151.69,29.36434625]
[1749459328664,12.51206314,151.72,151.69,29.36434625]
[1749459328976,12.51206314,151.72,151.69,22.77206314]
[1749459329180,12.51206314,151.72,151.69,29.36444183]
[1749459332872,12.51206314,151.72,151.69,10.26]
[1749459333072,12.51206314,151.7,151.67,32.59316024]
[1749459333773,12.51206314,151.7,151.67,45.10522338]
[1749459334154,12.59403381,151.73,151.67,45.10522338]
[1749459334476,12.51206314,151.71,151.67,45.10522338]
[1749459336274,12.51206314,151.72,151.68,12.51206314]
[1749459337078,12.51206314,151.71,151.67,45.10522338]
[1749459342585,6.59111263,151.72,151.67,45.10522338]
[1749459342782,12.51206314,151.71,151.67,45.10522338]
[1749459346286,12.51206314,151.73,151.69,12.51206314]
[1749459346465,12.51206314,151.72,151.68,12.51206314]
[1749459347990,12.51206314,151.72,151.69,6.59239237]
[1749459350100,12.51206314,151.74,151.7,12.51206314]
[1749459350775,12.51206314,151.73,151.69,19.10445551]
[1749459352198,12.51206314,151.74,151.7,12.51206314]
[1749459352961,12.51206314,151.74,151.71,6.5915233]
[1749459353361,12.51206314,151.74,151.7,19.10384715]
[1749459353583,12.51206314,151.73,151.7,6.59178401]
[1749459360792,12.51206314,151.73,151.7,12.51206314]
[1749459362924,12.51206314,151.74,151.7,12.51206314]
[1749459363298,8.00894058,151.74,151.7,8.00894058]
[1749459364392,8.00894058,151.74,151.7,14.60069511]
[1749459365406,8.00894058,151.74,151.68,50.28]
[1749459365407,8.00894058,151.71,151.68,16.85267751]
[1749459365611,8.00894058,151.7,151.68,10.26]
[1749459365905,8.00894058,151.7,151.66,14.60259119]
[1749459366106,8.00894058,151.7,151.64,66.74555977]
[1749459366107,8.00894058,151.68,151.64,16.85442118]
[1749459366297,14.62711396,151.72,151.66,14.60220691]
[1749459366501,8.00894058,151.71,151.67,8.00894058]
[1749459367313,12.51901213,151.7,151.66,19.11227846]
[1749459367694,12.51901213,151.67,151.64,26.0]
[1749459368110,12.51901213,151.68,151.64,38.51901213]
[1749459368831,12.51901213,151.68,151.65,6.59413122]
[1749459369028,6.59199137,151.7,151.65,19.11314335]
[1749459369029,12.51901213,151.69,151.65,19.11314335]
[1749459369702,12.51901213,151.69,151.65,6.59413122]
[1749459370798,12.51901213,151.68,151.64,45.11339172]
[1749459371720,12.51901213,151.68,151.64,38.51901213]
[1749459372918,12.51901213,151.66,151.63,10.26]
[1749459373118,12.51901213,151.66,151.63,16.85499808]
[1749459373295,12.51901213,151.67,151.63,29.37401021]
[1749459376429,12.51901213,151.68,151.64,12.51901213]
[1749459377720,6.59195781,151.7,151.64,12.51901213]
[1749459377936,12.51901213,151.68,151.64,12.51901213]
[1749459378225,12.51901213,151.68,151.64,19.11354523]
[1749459384942,19.11192519,151.68,151.63,16.85489675]
[1749459385106,12.51901213,151.66,151.63,10.26]
[1749459385633,12.51901213,151.65,151.63,10.26]
[1749459385812,12.51901213,151.66,151.62,6.59539108]
[1749459386006,12.51901213,151.66,151.61,45.1147125]
[1749459386632,19.11273122,151.66,151.61,45.1147125]
[1749459387526,12.51901213,151.65,151.61,12.51901213]
[1749459387710,12.51901213,151.65,151.61,19.1148786]
[1749459387904,12.51901213,151.65,151.6,6.59619074]
[1749459388214,12.51901213,151.64,151.6,19.11520287]
[1749459392414,12.51901213,151.65,151.61,12.51901213]
[1749459393216,7.7395,151.67,151.62,12.51901213]
[1749459393418,12.51901213,151.66,151.62,12.51901213]
[1749459394719,12.51901213,151.66,151.62,19.11441408]
[1749459396635,19.112716,151.66,151.62,12.51901213]
[1749459396938,12.51901213,151.64,151.6,19.11515602]
[1749459397114,12.51901213,151.65,151.61,12.51901213]
[1749459397531,12.51901213,151.65,151.6,19.11515602]
[1749459398016,6.59416364,151.65,151.6,6.59614389]
[1749459398216,12.51901213,151.64,151.6,19.11515602]
[1749459400115,12.51901213,151.65,151.61,12.51901213]
[1749459401642,7.7395,151.67,151.62,12.51901213]
[1749459401938,12.51901213,151.66,151.62,12.51901213]
[1749459402939,26.0,151.69,151.64,12.51901213]
[1749459403137,12.51901213,151.68,151.64,12.51901213]
[1749459403546,12.51901213,151.68,151.63,12.51901213]
[1749459403711,12.51901213,151.68,151.63,19.11389448]
[1749459403915,12.51901213,151.67,151.63,19.11389448]
[1749459404343,12.51901213,151.65,151.6,6.59630606]
[1749459404528,12.51901213,151.65,151.61,12.51901213]
[1749459405943,12.51901213,151.65,151.6,19.11531819]
[1749459406636,12.51901213,151.65,151.61,12.51901213]
[1749459407341,12.51901213,151.65,151.61,19.114535]
[1749459415330,26.0,151.68,151.62,12.51901213]
[1749459415652,12.51901213,151.67,151.63,12.51901213]
[1749459448166,2.73291378,151.86,151.85,12.51901213]
[1749459449169,2.73291378,151.86,151.84,12.51901213]
[1749459450876,2.73291378,151.86,151.84,19.10472433]
[1749459451075,2.73291378,151.86,151.85,12.51901213]
[1749459453255,2.73291378,151.86,151.84,6.5857122]
[1749459453656,2.73291378,151.86,151.84,19.10472433]
[1749459455170,2.73291378,151.86,151.84,12.51901213]
[1749459456986,2.73291378,151.86,151.84,19.10485893]
[1749459457491,2.73291378,151.86,151.83,52.63901213]
[1749459457691,2.73291378,151.86,151.83,59.22525429]
[1749459458396,2.73291378,151.86,151.83,52.63901213]
[1749459458684,12.51901213,151.85,151.81,59.20602739]
[1749459459192,12.51901213,151.85,151.81,46.68701526]
[1749459459365,12.51901213,151.85,151.81,12.51901213]
[1749459459568,12.51901213,151.84,151.8,59.20650886]
[1749459459891,12.51901213,151.82,151.78,12.51901213]
[1749459460069,12.51901213,151.82,151.79,40.1]
[1749459460563,12.51901213,151.82,151.78,52.61901213]
[1749459462486,12.51901213,151.82,151.78,59.20737218]
[1749459463596,6.87020301,151.84,151.79,12.51901213]
[1749459463769,12.51901213,151.83,151.79,12.51901213]
[1749459466510,12.51901213,151.82,151.78,59.18737218]
[1749459466793,12.51901213,151.81,151.78,19.10737218]
[1749459467092,12.51901213,151.82,151.78,12.51901213]
[1749459467998,12.51901213,151.82,151.78,19.10739579]
[1749459468202,12.51901213,151.81,151.78,6.58838366]
[1749459468876,12.51901213,151.82,151.78,19.10739579]
[1749459471811,10.3,151.85,151.8,12.51901213]
[1749459472102,10.3,151.85,151.79,12.51901213]
[1749459472103,12.51901213,151.83,151.79,12.51901213]
[1749459472280,10.57431378,151.86,151.81,12.51901213]
[1749459472483,23.09332591,151.86,151.81,12.51901213]
[1749459472699,23.09332591,151.86,151.81,52.59901213]
[1749459473091,23.09332591,151.86,151.82,12.51901213]
[1749459473603,4.25751378,151.86,151.83,12.51901213]
[1749459473793,2.73291378,151.86,151.84,12.51901213]
[1749459474004,2.73291378,151.86,151.85,12.51901213]
[1749459476690,2.73291378,151.86,151.85,19.10445829]
[1749459479530,2.73291378,151.86,151.85,6.58544616]
[1749459479820,2.73291378,151.86,151.84,26.0]
[1749459481602,2.73291378,151.86,151.81,6.58702003]
[1749459481603,12.51901213,151.85,151.81,6.58702003]
[1749459481806,12.51901213,151.83,151.79,62.91901213]
[1749459482003,12.51901213,151.83,151.79,88.91901213]
[1749459482403,12.51901213,151.83,151.8,6.58757549]
[1749459483212,12.51901213,151.83,151.79,55.4069106]
[1749459483415,12.51901213,151.82,151.79,42.88789847]
[1749459483795,12.51901213,151.82,151.79,32.58789847]
[1749459484002,12.51901213,151.81,151.77,12.51901213]
[1749459484201,12.51901213,151.81,151.77,52.61901213]
[1749459484598,12.51901213,151.81,151.78,26.0]
[1749459484795,12.51901213,151.81,151.78,32.58848216]
[1749459486325,12.51901213,151.82,151.78,45.10749429]
[1749459486815,6.58602973,151.84,151.78,45.10749429]
[1749459487000,12.51901213,151.82,151.78,45.10749429]
[1749459487917,12.51901213,151.81,151.78,32.58848216]
[1749459488524,12.51901213,151.82,151.78,45.10749429]
[1749459491534,12.51901213,151.82,151.78,32.58848216]
[1749459492522,12.51901213,151.81,151.78,32.58848216]
[1749459494940,12.51901213,151.85,151.8,12.51901213]
[1749459495123,12.51901213,151.85,151.81,12.51901213]
[1749459495733,12.51901213,151.85,151.81,19.10600348]
[1749459497230,2.73291378,151.86,151.83,12.51901213]
[1749459497742,2.73291378,151.86,151.83,19.10507376]
[1749459498246,15.25192591,151.86,151.82,19.10559358]
[1749459498615,2.73291378,151.86,151.82,19.10559358]
[1749459498842,2.73291378,151.86,151.83,12.51901213]
[1749459499139,2.73291378,151.86,151.84,12.51901213]
[1749459499527,2.73291378,151.86,151.83,12.51901213]
[1749459499844,2.73291378,151.86,151.84,6.58587987]
[1749459502344,2.73291378,151.86,151.84,12.51901213]
[1749459503942,2.73291378,151.86,151.84,19.10469914]
[1749459504617,2.73291378,151.86,151.85,12.51901213]
[1749459505447,2.73291378,151.86,151.85,19.10445829]
[1749459505630,2.73291378,151.86,151.85,12.51901213]
[1749459507549,2.73291378,151.86,151.84,12.51901213]
[1749459507724,2.73291378,151.86,151.83,19.1051722]
[1749459507925,2.73291378,151.86,151.83,6.58616007]
[1749459508251,2.73291378,151.86,151.83,19.1051722]
[1749459510940,2.73291378,151.86,151.83,12.51901213]
[1749459511751,2.73291378,151.86,151.83,19.10530019]
[1749459511954,15.25192591,151.86,151.82,12.51901213]
[1749459512336,15.25192591,151.86,151.81,66.08]
[1749459512536,15.25192591,151.86,151.82,19.10562079]
[1749459513347,2.73291378,151.86,151.83,12.51901213]
[1749459514779,2.73291378,151.86,151.83,19.10519644]
[1749459517644,2.73291378,151.86,151.84,12.51901213]
[1749459518046,2.73291378,151.86,151.83,19.10519644]
[1749459520455,2.73291378,151.86,151.84,12.51901213]
[1749459520670,2.73291378,151.86,151.85,12.51901213]
[1749459522340,2.73291378,151.86,151.85,19.10445829]
[1749459522945,2.73291378,151.86,151.85,59.16445829]
[1749459526140,2.73291378,151.86,151.85,69.44445829]
[1749459527463,0.9287005,151.87,151.86,46.27694886]
[1749459527676,0.9287005,151.87,151.86,58.79596099]
[1749459528373,0.9287005,151.87,151.86,38.51901213]
[1749459529868,0.9287005,151.87,151.86,45.10402464]
[1749459530167,0.9287005,151.87,151.86,85.16402464]
[1749459530367,0.9287005,151.87,151.86,95.44402464]
[1749459536951,0.9287005,151.87,151.86,45.10402464]
[1749459537250,0.9287005,151.87,151.86,95.40402464]
[1749459542759,0.9287005,151.87,151.83,10.28]
[1749459542969,0.9287005,151.87,151.84,12.51901213]
[1749459543155,0.9287005,151.87,151.83,10.28]
[1749459543156,13.44771263,151.87,151.83,10.28]
[1749459543468,12.51901213,151.86,151.83,10.28]
[1749459544578,12.51901213,151.86,151.82,12.51901213]
[1749459544879,12.51901213,151.86,151.82,19.10571594]
[1749459545272,12.51901213,151.84,151.81,26.0]
[1749459545575,12.51901213,151.83,151.79,67.30690462]
[1749459546068,12.51901213,151.83,151.79,93.30690462]
[1749459546280,12.51901213,151.84,151.8,12.51901213]
[1749459546461,12.51901213,151.84,151.81,6.58718134]
[1749459547854,12.51901213,151.84,151.8,19.10647532]
[1749459548376,19.10496084,151.84,151.79,93.30695143]
[1749459548579,12.51901213,151.83,151.79,55.38695143]
[1749459549083,12.51901213,151.82,151.79,10.28]
[1749459549265,7.648,151.79,151.73,12.51901213]
[1749459549580,7.648,151.79,151.76,12.51901213]
[1749459549880,20.16701213,151.79,151.75,12.51901213]
[1749459550478,20.16701213,151.79,151.76,6.5893516]
[1749459550979,12.51901213,151.78,151.74,38.51901213]
[1749459551353,7.648,151.79,151.75,12.51901213]
[1749459551557,7.648,151.79,151.76,12.51901213]
[1749459552059,12.51901213,151.82,151.78,12.51901213]
[1749459552671,7.6363,151.83,151.78,19.10732032]
[1749459552967,12.51901213,151.82,151.78,19.10732032]
[1749459553878,12.51901213,151.81,151.78,6.58830819]
[1749459554083,12.51901213,151.81,151.77,19.10777461]
[1749459554385,12.51901213,151.79,151.75,12.51901213]
[1749459554562,12.51901213,151.78,151.75,26.0]
[1749459554760,12.51901213,151.78,151.75,32.58977873]
[1749459555164,12.51901213,151.79,151.75,32.58977873]
[1749459555376,12.51901213,151.8,151.76,12.51901213]
[1749459555584,7.77846157,151.83,151.75,32.58977873]
[1749459555585,12.51901213,151.81,151.77,12.51901213]
[1749459555885,12.51901213,151.8,151.76,12.51901213]
[1749459557092,12.51901213,151.8,151.76,45.10808419]
[1749459557695,12.51901213,151.82,151.78,12.51901213]
[1749459557860,26.74175804,151.83,151.78,12.51901213]
[1749459558060,26.74175804,151.83,151.79,12.51901213]
[1749459558369,20.15531213,151.83,151.79,12.51901213]
[1749459559294,12.51901213,151.8,151.76,85.26808419]
[1749459559499,12.51901213,151.81,151.77,12.51901213]
[1749459560658,12.51901213,151.81,151.77,19.10784308]
[1749459560958,12.51901213,151.81,151.77,12.51901213]
[1749459561892,6.58697929,151.82,151.77,12.51901213]
[1749459562382,12.51901213,151.81,151.77,12.51901213]
[1749459563689,14.22277769,151.83,151.77,12.51901213]
[1749459563875,26.74178982,151.83,151.79,12.51901213]
[1749459564460,152.68517345,151.86,151.81,12.51901213]
[1749459564665,165.20418558,151.86,151.82,12.51901213]
[1749459564867,146.1,151.86,151.82,12.51901213]
[1749459565072,158.61901213,151.86,151.82,12.51901213]
[1749459565589,165.20407361,151.86,151.82,12.51901213]
[1749459566387,165.20407361,151.86,151.82,19.10561121]
[1749459566388,12.51901213,151.86,151.82,19.10561121]
[1749459566591,12.51901213,151.86,151.8,6.58761528]
[1749459566889,12.51901213,151.86,151.82,12.51901213]
[1749459567270,19.10415475,151.86,151.82,12.51901213]
[1749459567787,12.51901213,151.85,151.81,12.51901213]
[1749459567989,12.51901213,151.84,151.79,45.10688976]
[1749459568488,12.51901213,151.84,151.8,12.51901213]
[1749459569985,8.9600005,151.87,151.8,12.51901213]
[1749459570175,12.51901213,151.85,151.81,12.51901213]
[1749459571394,12.51901213,151.85,151.8,6.5875756]
[1749459571597,12.51901213,151.85,151.81,12.51901213]
[1749459572575,19.10450507,151.85,151.81,12.51901213]
[1749459574473,12.51901213,151.84,151.8,12.51901213]
[1749459576002,19.10508075,151.84,151.8,12.51901213]
[1749459576201,19.10508075,151.84,151.79,38.51901213]
[1749459576381,12.51901213,151.83,151.79,38.51901213]
[1749459578298,19.10541126,151.83,151.79,38.51901213]
[1749459579107,12.51901213,151.83,151.79,38.51901213]
[1749459579307,12.51901213,151.83,151.79,45.10700436]
[1749459580185,12.51901213,151.85,151.81,12.51901213]
[1749459581797,19.10402464,151.86,151.82,12.51901213]
[1749459582676,6.58501251,151.86,151.82,12.51901213]
[1749459582880,28.06374177,151.87,151.82,19.10574491]
[1749459583721,28.06374177,151.87,151.83,12.51901213]
[1749459584204,12.51901213,151.85,151.8,12.51901213]
[1749459584419,12.51901213,151.85,151.79,32.58791136]
[1749459584582,12.51901213,151.85,151.81,12.51901213]
[1749459585187,19.10434211,151.86,151.81,12.51901213]
[1749459585386,21.47901263,151.87,151.82,12.51901213]
[1749459585601,13.44771263,151.87,151.83,12.51901213]
[1749459587105,13.44771263,151.87,151.83,19.10531782]
[1749459588004,0.9287005,151.87,151.84,12.51901213]
[1749459589114,13.44771263,151.87,151.83,19.10531782]